[Event "94th Paris-ch  2019"]
[Site "Paris"]
[Date "2019.07.12"]
[Round "7.12"]
[White "Dutreuil, Raphael"]
[Black "Le Goff, Ronan"]
[Result "1/2-1/2"]
[ECO "A29"]
[WhiteElo "2302"]
[BlackElo "2281"]
[Annotator "NA"]
[PlyCount "42"]
[EventDate "2019.07.07"]
[EventType "swiss"]
[EventCountry "FRA"]
[SourceTitle "playchess.com"]
[Source "ChessBase"]
[SourceQuality "1"]
[TimeControl "5400+30"]

1. c4 {[%emt 0:16:29]} e5 {[%emt 0:00:16]} 2. g3 {[%emt 0:00:12]} Nf6 {[%emt 0:00:08]} 3. Bg2 {[%emt 0:00:26]} d5 {[%emt 0:06:38]} 4. cxd5 {[%emt 0:00:25]} Nxd5 {[%emt 0:00:10]} 5. Nc3 {[%emt 0:00:14]} Nb6 {[%emt 0:00:36]} 6. Nf3 {[%emt 0:00:27]} Nc6 {[%emt 0:01:47]} 7. Rb1 {[%emt 0:00:27]} a5 {[%emt 0:04:49]} 8. O-O {[%emt 0:00:57]} Be7 {[%emt 0:02:43]} 9. d3 {[%emt 0:00:15]} O-O {[%emt 0:00:11]} 10. Be3 {[%emt 0:00:11]} Be6 {[%emt 0:04:22]} 11. d4 {[%emt 0:02:19]} exd4 {[%emt 0:03:47]} 12. Nxd4 {[%emt 0:01:02]} Nxd4 {[%emt 0:01:28]} 13. Bxd4 {[%emt 0:00:42]} c6 {[%emt 0:01:14]} 14. f4 {[%emt 0:00:21]} f5 {[%emt 0:05:29]} 15. e4 {[%emt 0:02:20]} a4 {[%emt 0:08:22]} 16. Bh3 {[%emt 0:08:42]} Nc4 {[%emt 0:07:47]} 17. exf5 {[%emt 0:14:16]} Bxf5 {[%emt 0:02:12]} 18. Bxf5 {[%emt 0:00:23]} Rxf5 {[%emt 0:00:12]} 19. Qd3 {[%emt 0:00:23]} Qxd4+ {[%emt 0:05:21]} 20. Qxd4 {[%emt 0:00:56]} Bc5 {[%emt 0:00:07]} 21. Rfd1 {[%emt 0:00:33]} Bxd4+ {[%emt 0:02:48]} 1/2-1/2

[Event "94th Paris-ch  2019"]
[Site "Paris"]
[Date "2019.07.12"]
[Round "7.14"]
[White "O`Sullivan, Thomas"]
[Black "Vardaan Nagpal"]
[Result "1/2-1/2"]
[ECO "D10"]
[WhiteElo "2291"]
[BlackElo "2355"]
[Annotator "ChessBase"]
[PlyCount "92"]
[EventDate "2019.07.07"]
[EventType "swiss"]
[EventCountry "FRA"]
[SourceTitle "playchess.com"]
[Source "ChessBase"]
[SourceQuality "1"]
[TimeControl "5400+30"]

1. d4 {[%emt 0:10:33]} d5 {[%emt 0:00:00]} 2. c4 {[%emt 0:00:04]} c6 {[%emt 0:00:00]} 3. Nc3 {[%emt 0:01:56]} dxc4 {[%emt 0:00:00]} 4. e3 {[%emt 0:03:48]} b5 {[%emt 0:00:05]} 5. a4 {[%emt 0:00:07]} b4 {[%emt 0:00:07]} 6. Ne4 {[%emt 0:00:37]} Qd5 {[%emt 0:00:04]} 7. Nd2 {[%emt 0:00:03]} c3 {[%emt 0:00:08]} 8. bxc3 {[%emt 0:00:05]} bxc3 {[%emt 0:00:05]} 9. Ndf3 {[%emt 0:15:35]} e6 {[%emt 0:18:17]} 10. Bd3 {[%emt 0:13:22]} Qa5 {[%emt 0:08:18]} 11. Qe2 {[%emt 0:22:20]} Nd7 {[%emt 0:13:15]} 12. Qc2 {[%emt 0:02:39]} Ngf6 {[%emt 0:08:43]} 13. Ne2 {[%emt 0:00:37]} Bb4 {[%emt 0:00:10]} 14. Ba3 {[%emt 0:03:41]} c5 {[%emt 0:00:58]} 15. dxc5 {[%emt 0:01:43]} Nxc5 {[%emt 0:06:09]} 16. Bb5+ {[%emt 0:00:15]} Bd7 {[%emt 0:00:13]} 17. Bxb4 {[%emt 0:00:47]} Qxb4 {[%emt 0:00:04]} 18. Qxc3 {[%emt 0:00:43]} Qxc3+ {[%emt 0:02:33]} 19. Nxc3 {[%emt 0:00:06]} O-O {[%emt 0:00:08]} 20. Ke2 {[%emt 0:05:50]} Rfc8 {[%emt 0:01:21]} 21. Bxd7 {[%emt 0:05:24]} Nfxd7 {[%emt 0:00:19]} 22. Rhb1 {[%emt 0:01:22]} h6 {[%emt 0:03:39]} 23. Rb2 {[%emt 0:01:33]} Nf6 {[%emt 0:01:39]} 24. Nd2 {[%emt 0:01:34]} Rd8 {[%emt 0:01:38]} 25. Nb3 {[%emt 0:01:49]} Rac8 {[%emt 0:00:46]} 26. Nxc5 {[%emt 0:02:57]} Rxc5 {[%emt 0:00:05]} 27. Nb5 {[%emt 0:00:39]} a6 {[%emt 0:11:57]} 28. Nd4 {[%emt 0:00:00]} Rdc8 {[%emt 0:00:09]} 29. f3 {[%emt 0:01:10]} Nd5 {[%emt 0:02:14]} 30. Ra3 {[%emt 0:01:08]} g6 {[%emt 0:03:50]} 31. Kf2 {[%emt 0:00:43]} Nc3 {[%emt 0:04:50]} 32. Ra1 {[%emt 0:00:48]} Rd5 {[%emt 0:06:23]} 33. Rd2 {[%emt 0:01:39]} Rc4 {[%emt 0:00:46]} 34. a5 {[%emt 0:00:23]} Rb4 {[%emt 0:02:25]} 35. Ke1 {[%emt 0:00:24]} Rc5 {[%emt 0:03:19]} 36. Rc1 {[%emt 0:00:33]} Na4 {[%emt 0:01:14]} 37. Rxc5 {[%emt 0:00:09]} Nxc5 {[%emt 0:00:01]} 38. Rc2 {[%emt 0:00:38]} Nb7 {[%emt 0:00:49]} 39. Rc8+ {[%emt 0:00:18]} Kg7 {[%emt 0:00:06]} 40. Rb8 {[%emt 0:00:59]} e5 {[%emt 0:01:40]} 41. Nc6 {[%emt 0:00:00]} Rb3 {[%emt 0:01:19]} 42. Kd2 {[%emt 0:00:12]} Nxa5 {[%emt 0:00:21]} 43. Rxb3 {[%emt 0:00:27]} Nxb3+ {[%emt 0:00:01]} 44. Kc3 {[%emt 0:00:07]} Nc5 {[%emt 0:00:31]} 45. h3 {[%emt 0:01:23]} Kf6 46. Nxe5 Kg7 {[%emt 0:00:02]} 1/2-1/2

[Event "94th Paris-ch  2019"]
[Site "Paris"]
[Date "2019.07.12"]
[Round "7.15"]
[White "Tomasi, Albert"]
[Black "Eden, James"]
[Result "1-0"]
[ECO "B61"]
[WhiteElo "2300"]
[BlackElo "2343"]
[Annotator "ChessBase"]
[PlyCount "123"]
[EventDate "2019.07.07"]
[EventType "swiss"]
[EventCountry "FRA"]
[SourceTitle "playchess.com"]
[Source "ChessBase"]
[SourceQuality "1"]
[TimeControl "5400+30"]

1. e4 {[%emt 0:05:44]} c5 {[%emt 0:00:00]} 2. Nf3 {[%emt 0:00:27]} d6 {[%emt 0:00:00]} 3. d4 {[%emt 0:00:05]} cxd4 {[%emt 0:00:00]} 4. Nxd4 {[%emt 0:00:04]} Nf6 {[%emt 0:00:00]} 5. Nc3 {[%emt 0:00:03]} Nc6 {[%emt 0:00:05]} 6. Bg5 {[%emt 0:00:06]} Bd7 {[%emt 0:00:22]} 7. Qd2 {[%emt 0:01:51]} Rc8 {[%emt 0:00:18]} 8. f4 {[%emt 0:00:06]} Nxd4 {[%emt 0:00:38]} 9. Qxd4 {[%emt 0:00:05]} Qa5 {[%emt 0:00:11]} 10. e5 {[%emt 0:02:34]} dxe5 {[%emt 0:00:27]} 11. fxe5 {[%emt 0:00:04]} e6 {[%emt 0:00:14]} 12. O-O-O {[%emt 0:01:24]} Bc6 {[%emt 0:11:12]} 13. Bb5 {[%emt 0:00:36]} Bxb5 {[%emt 0:13:28]} 14. exf6 {[%emt 0:00:30]} Bc6 {[%emt 0:01:01]} 15. h4 {[%emt 0:00:13]} Bc5 {[%emt 0:01:08]} 16. Qf4 {[%emt 0:16:17]} g6 {[%emt 0:07:22]} 17. h5 {[%emt 0:08:36]} gxh5 {[%emt 0:07:57]} 18. Rxh5 {[%emt 0:03:21]} Bb4 {[%emt 0:04:20]} 19. Bh4 {[%emt 0:06:32]} Qxh5 {[%emt 0:03:33]} 20. Qxb4 {[%emt 0:00:06]} Qh6+ {[%emt 0:00:14]} 21. Kb1 {[%emt 0:00:29]} Qf8 {[%emt 0:00:11]} 22. Qd4 {[%emt 0:03:58]} Rg8 {[%emt 0:03:17]} 23. g4 {[%emt 0:11:29]} b6 {[%emt 0:13:35]} 24. b4 {[%emt 0:00:20]} Rg6 {[%emt 0:12:54]} 25. b5 {[%emt 0:21:56]} Qc5 {[%emt 0:11:26]} 26. bxc6 {[%emt 0:00:05]} Qxd4 {[%emt 0:01:01]} 27. Rxd4 {[%emt 0:00:05]} Rxc6 {[%emt 0:00:07]} 28. Nb5 {[%emt 0:01:37]} e5 {[%emt 0:02:07]} 29. Re4 {[%emt 0:00:56]} Kd7 {[%emt 0:00:23]} 30. Nxa7 {[%emt 0:05:06]} Rc5 {[%emt 0:00:17]} 31. Bf2 {[%emt 0:01:10]} Rd5 {[%emt 0:00:13]} 32. Bxb6 {[%emt 0:06:46]} Rxf6 {[%emt 0:00:16]} 33. Be3 {[%emt 0:00:20]} Rf1+ {[%emt 0:00:40]} 34. Kb2 {[%emt 0:00:08]} Re1 {[%emt 0:00:13]} 35. a4 {[%emt 0:02:03]} h5 {[%emt 0:02:06]} 36. gxh5 {[%emt 0:01:16]} f5 {[%emt 0:00:13]} 37. Rh4 {[%emt 0:00:05]} Rxe3 {[%emt 0:00:10]} 38. h6 {[%emt 0:00:06]} Rd4 {[%emt 0:00:06]} 39. Rh5 {[%emt 0:01:07]} Rb4+ {[%emt 0:01:12]} 40. Kc1 {[%emt 0:00:07]} Rb8 {[%emt 0:00:45]} 41. Rxf5 {[%emt 0:01:18]} Ke6 {[%emt 0:00:57]} 42. Rh5 {[%emt 0:00:10]} Rc3 {[%emt 0:01:28]} 43. Nb5 {[%emt 0:01:16]} Rc4 {[%emt 0:00:19]} 44. h7 {[%emt 0:00:28]} Rh8 {[%emt 0:00:41]} 45. a5 {[%emt 0:00:26]} Rc5 {[%emt 0:01:32]} 46. Rh6+ {[%emt 0:00:33]} Kd5 {[%emt 0:00:44]} 47. Nd6 {[%emt 0:00:09]} Rc6 {[%emt 0:02:32]} 48. c4+ {[%emt 0:00:06]} Kd4 {[%emt 0:00:06]} 49. Rh4+ {[%emt 0:00:39]} Kd3 {[%emt 0:00:23]} 50. Nf7 {[%emt 0:00:07]} Rxh7 {[%emt 0:02:00]} 51. Nxe5+ {[%emt 0:00:13]} Kc3 {[%emt 0:00:07]} 52. Rxh7 {[%emt 0:00:05]} Rc5 {[%emt 0:00:04]} 53. Rh3+ {[%emt 0:01:36]} Kd4 {[%emt 0:00:14]} 54. Rh4+ {[%emt 0:00:38]} Kc3 {[%emt 0:00:58]} 55. Re4 {[%emt 0:00:09]} Kb3 {[%emt 0:00:52]} 56. Re3+ {[%emt 0:00:25]} Ka2 {[%emt 0:00:38]} 57. Kc2 {[%emt 0:00:29]} Rxa5 {[%emt 0:00:10]} 58. Nc6 {[%emt 0:00:09]} Ra4 {[%emt 0:00:17]} 59. Rc3 {[%emt 0:00:06]} Ra8 {[%emt 0:01:05]} 60. Nb4+ {[%emt 0:00:06]} Ka1 {[%emt 0:00:12]} 61. c5 {[%emt 0:00:06]} Ra5 {[%emt 0:00:56]} 62. Kb3 {[%emt 0:00:41]} 1-0

[Event "94th Paris-ch  2019"]
[Site "Paris"]
[Date "2019.07.12"]
[Round "7.16"]
[White "Manoeuvre, Antoine"]
[Black "Jeet, Jain"]
[Result "1/2-1/2"]
[ECO "D55"]
[WhiteElo "2325"]
[BlackElo "2258"]
[Annotator "NA"]
[PlyCount "45"]
[EventDate "2019.07.07"]
[EventType "swiss"]
[EventCountry "FRA"]
[SourceTitle "playchess.com"]
[Source "ChessBase"]
[SourceQuality "1"]
[TimeControl "5400+30"]

1. d4 {[%emt 0:00:00]} d5 {[%emt 0:00:33]} 2. c4 {[%emt 0:00:39]} e6 {[%emt 0:00:32]} 3. Nc3 {[%emt 0:01:00]} Be7 {[%emt 0:00:41]} 4. Nf3 {[%emt 0:02:07]} Nf6 {[%emt 0:00:48]} 5. cxd5 {[%emt 0:02:08]} exd5 {[%emt 0:00:36]} 6. Bg5 {[%emt 0:00:10]} h6 {[%emt 0:01:03]} 7. Bh4 {[%emt 0:01:29]} Nbd7 {[%emt 0:00:29]} 8. e3 {[%emt 0:01:03]} O-O {[%emt 0:00:20]} 9. Qc2 {[%emt 0:03:26]} b6 {[%emt 0:02:45]} 10. Bd3 {[%emt 0:07:50]} Bb7 {[%emt 0:00:52]} 11. O-O {[%emt 0:13:37]} c5 {[%emt 0:01:29]} 12. Ne5 {[%emt 0:06:15]} c4 {[%emt 0:23:08]} 13. Be2 {[%emt 0:03:30]} a6 {[%emt 0:01:54]} 14. Bf3 {[%emt 0:02:06]} b5 {[%emt 0:03:18]} 15. Qf5 {[%emt 0:01:13]} g6 {[%emt 0:11:16]} 16. Nxg6 {[%emt 0:02:34]} fxg6 {[%emt 0:00:26]} 17. Qxg6+ {[%emt 0:00:12]} Kh8 {[%emt 0:00:07]} 18. Qxh6+ {[%emt 0:00:28]} Kg8 {[%emt 0:04:52]} 19. Qg6+ {[%emt 0:13:03]} Kh8 {[%emt 0:00:09]} 20. Qh6+ {[%emt 0:00:35]} Kg8 {[%emt 0:00:03]} 21. Qg6+ {[%emt 0:00:07]} Kh8 {[%emt 0:00:21]} 22. Qh6+ {[%emt 0:00:02]} Nh7 23. Bxd5 {[%emt 0:00:01]} 1/2-1/2

[Event "94th Paris-ch  2019"]
[Site "Paris"]
[Date "2019.07.12"]
[Round "7.18"]
[White "Gervasio, Ricardo"]
[Black "Hingouet, Matthieu"]
[Result "1/2-1/2"]
[ECO "E47"]
[WhiteElo "2223"]
[BlackElo "2245"]
[Annotator "ChessBase"]
[PlyCount "121"]
[EventDate "2019.07.07"]
[EventType "swiss"]
[EventCountry "FRA"]
[SourceTitle "playchess.com"]
[Source "ChessBase"]
[SourceQuality "1"]
[TimeControl "5400+30"]

1. d4 {[%emt 0:00:00]} Nf6 {[%emt 0:00:00]} 2. c4 {[%emt 0:00:00]} e6 {[%emt 0:00:00]} 3. Nc3 {[%emt 0:00:00]} Bb4 {[%emt 0:00:00]} 4. e3 {[%emt 0:00:03]} O-O {[%emt 0:00:09]} 5. Bd3 {[%emt 0:00:17]} d6 {[%emt 0:05:11]} 6. Nge2 {[%emt 0:00:09]} e5 {[%emt 0:06:06]} 7. O-O {[%emt 0:01:09]} Re8 {[%emt 0:00:50]} 8. f3 {[%emt 0:04:01]} c6 {[%emt 0:09:24]} 9. Qc2 {[%emt 0:05:32]} Nbd7 {[%emt 0:01:38]} 10. Bd2 {[%emt 0:01:39]} Nf8 {[%emt 0:01:47]} 11. Rad1 {[%emt 0:00:49]} Qe7 {[%emt 0:05:52]} 12. a3 {[%emt 0:02:53]} Ba5 {[%emt 0:00:49]} 13. b4 {[%emt 0:00:21]} Bc7 {[%emt 0:02:46]} 14. Ng3 {[%emt 0:06:27]} a6 {[%emt 0:03:20]} 15. Rfe1 {[%emt 0:00:56]} b5 {[%emt 0:02:36]} 16. d5 {[%emt 0:27:05]} cxd5 {[%emt 0:07:46]} 17. cxd5 {[%emt 0:00:12]} Bb6 {[%emt 0:01:27]} 18. Kh1 {[%emt 0:00:13]} g6 {[%emt 0:08:28]} 19. Rf1 {[%emt 0:05:43]} h5 {[%emt 0:03:10]} 20. Nge2 {[%emt 0:05:09]} Bb7 {[%emt 0:03:18]} 21. e4 {[%emt 0:01:40]} N8h7 {[%emt 0:02:03]} 22. Ng1 {[%emt 0:01:33]} h4 {[%emt 0:02:42]} 23. Nh3 {[%emt 0:07:35]} Bc8 {[%emt 0:02:17]} 24. Ng5 {[%emt 0:00:41]} Nh5 {[%emt 0:01:07]} 25. Qc1 {[%emt 0:02:22]} f6 {[%emt 0:06:53]} 26. Ne6 {[%emt 0:00:52]} Nf8 {[%emt 0:01:38]} 27. Nxf8 {[%emt 0:02:41]} Qxf8 {[%emt 0:03:34]} 28. Be3 {[%emt 0:02:50]} Bxe3 29. Qxe3 {[%emt 0:00:02]} Nf4 {[%emt 0:02:35]} 30. Rc1 {[%emt 0:01:09]} Bd7 {[%emt 0:00:47]} 31. Rc2 {[%emt 0:00:24]} Rec8 {[%emt 0:00:58]} 32. Rfc1 {[%emt 0:00:13]} Nxd3 {[%emt 0:02:43]} 33. Qxd3 {[%emt 0:00:09]} Rc4 {[%emt 0:00:06]} 34. Nd1 {[%emt 0:01:48]} Rxc2 {[%emt 0:00:41]} 35. Rxc2 {[%emt 0:00:08]} Rc8 {[%emt 0:00:15]} 36. Ne3 {[%emt 0:00:27]} Rxc2 {[%emt 0:00:45]} 37. Qxc2 {[%emt 0:00:10]} Qb8 {[%emt 0:03:01]} 38. Qf2 {[%emt 0:03:22]} Qc7 {[%emt 0:02:11]} 39. Qd2 {[%emt 0:01:17]} Kg7 {[%emt 0:02:44]} 40. Kg1 {[%emt 0:02:00]} Qc8 {[%emt 0:00:51]} 41. g4 {[%emt 0:00:38]} g5 {[%emt 0:01:25]} 42. Qc2 {[%emt 0:00:40]} Qb7 {[%emt 0:01:55]} 43. Qc3 {[%emt 0:00:20]} Kf7 {[%emt 0:00:18]} 44. Kg2 {[%emt 0:00:18]} Qa7 {[%emt 0:00:16]} 45. Nd1 {[%emt 0:00:27]} Ke7 {[%emt 0:00:30]} 46. Nf2 {[%emt 0:03:00]} Qb6 {[%emt 0:00:37]} 47. Kf1 {[%emt 0:00:07]} Qa7 {[%emt 0:00:12]} 48. Ke2 {[%emt 0:00:07]} Qb6 {[%emt 0:00:23]} 49. Kf1 {[%emt 0:00:36]} Qa7 {[%emt 0:00:05]} 50. Nd1 {[%emt 0:00:09]} Qb6 {[%emt 0:00:28]} 51. Ne3 {[%emt 0:00:10]} Qa7 {[%emt 0:00:25]} 52. Nc2 {[%emt 0:00:22]} Qb6 {[%emt 0:00:23]} 53. Na1 {[%emt 0:00:01]} Kf7 {[%emt 0:01:30]} 54. Nb3 {[%emt 0:00:06]} Ke7 {[%emt 0:00:43]} 55. Na5 {[%emt 0:00:13]} Ke8 {[%emt 0:00:41]} 56. Nb3 {[%emt 0:02:46]} Ke7 {[%emt 0:00:12]} 57. Nc1 {[%emt 0:00:05]} Qa7 {[%emt 0:00:16]} 58. Ne2 {[%emt 0:00:13]} Qb6 {[%emt 0:00:17]} 59. Ke1 {[%emt 0:00:03]} Qa7 {[%emt 0:00:26]} 60. Kf1 {[%emt 0:00:40]} Qb6 {[%emt 0:00:04]} 61. Ke1 {[%emt 0:00:31]} 1/2-1/2

[Event "94th Paris-ch  2019"]
[Site "Paris"]
[Date "2019.07.12"]
[Round "7.20"]
[White "Lutard, Theo"]
[Black "Douriet Duany, Alexis"]
[Result "1-0"]
[ECO "B06"]
[WhiteElo "2222"]
[BlackElo "2247"]
[Annotator "ChessBase"]
[PlyCount "87"]
[EventDate "2019.07.07"]
[EventType "swiss"]
[EventCountry "FRA"]
[SourceTitle "playchess.com"]
[Source "ChessBase"]
[SourceQuality "1"]
[TimeControl "5400+30"]

1. e4 {[%emt 0:00:00]} g6 {[%emt 0:23:01]} 2. d4 {[%emt 0:00:06]} Bg7 {[%emt 0:00:14]} 3. Nc3 {[%emt 0:00:13]} c5 {[%emt 0:00:00]} 4. dxc5 {[%emt 0:00:10]} Bxc3+ {[%emt 0:00:11]} 5. bxc3 {[%emt 0:00:10]} Qa5 {[%emt 0:01:46]} 6. Qd4 {[%emt 0:00:40]} Nf6 {[%emt 0:00:39]} 7. Bd2 {[%emt 0:02:00]} Nc6 {[%emt 0:01:21]} 8. Qe3 {[%emt 0:00:14]} b6 {[%emt 0:07:29]} 9. cxb6 {[%emt 0:00:21]} axb6 {[%emt 0:00:02]} 10. Nf3 {[%emt 0:08:36]} O-O {[%emt 0:06:26]} 11. Bd3 {[%emt 0:03:16]} Qc5 {[%emt 0:04:11]} 12. O-O {[%emt 0:07:32]} d6 {[%emt 0:18:01]} 13. Rfb1 {[%emt 0:12:22]} Ng4 {[%emt 0:17:21]} 14. Qe2 {[%emt 0:01:39]} Nce5 {[%emt 0:00:19]} 15. Rb5 {[%emt 0:17:14]} Qc7 {[%emt 0:00:34]} 16. Nxe5 {[%emt 0:02:50]} Nxe5 {[%emt 0:00:39]} 17. f4 {[%emt 0:02:54]} Bg4 {[%emt 0:02:03]} 18. Qf1 {[%emt 0:03:34]} Nd7 {[%emt 0:02:53]} 19. f5 {[%emt 0:02:31]} gxf5 {[%emt 0:05:22]} 20. exf5 {[%emt 0:01:16]} Ra4 {[%emt 0:01:45]} 21. h3 {[%emt 0:08:22]} Bh5 {[%emt 0:00:15]} 22. g4 {[%emt 0:04:16]} Bxg4 {[%emt 0:00:18]} 23. hxg4 {[%emt 0:00:24]} Rxg4+ {[%emt 0:00:16]} 24. Kf2 {[%emt 0:00:25]} Kh8 {[%emt 0:02:37]} 25. Rb4 {[%emt 0:11:54]} Ne5 {[%emt 0:00:49]} 26. Qh3 {[%emt 0:04:55]} Rfg8 {[%emt 0:01:55]} 27. Rxg4 {[%emt 0:02:22]} Nxg4+ {[%emt 0:00:38]} 28. Ke2 {[%emt 0:00:41]} Qc5 {[%emt 0:00:22]} 29. Rf1 {[%emt 0:01:22]} Nf6 {[%emt 0:01:36]} 30. Rf2 {[%emt 0:01:13]} Qd5 {[%emt 0:00:37]} 31. c4 {[%emt 0:00:33]} Qd4 {[%emt 0:00:31]} 32. Be3 {[%emt 0:00:25]} Qe5 {[%emt 0:00:29]} 33. Rg2 {[%emt 0:00:24]} Rxg2+ {[%emt 0:01:15]} 34. Qxg2 {[%emt 0:00:05]} h5 {[%emt 0:00:32]} 35. Qg5 {[%emt 0:00:52]} Qh2+ {[%emt 0:00:17]} 36. Ke1 {[%emt 0:00:26]} Ng4 {[%emt 0:00:40]} 37. Qxe7 {[%emt 0:00:56]} Qg3+ {[%emt 0:00:29]} 38. Kd2 {[%emt 0:00:13]} Qg2+ {[%emt 0:00:17]} 39. Kc3 {[%emt 0:00:25]} Nxe3 {[%emt 0:00:46]} 40. Qxe3 {[%emt 0:00:29]} Kg7 {[%emt 0:00:01]} 41. Qf4 {[%emt 0:00:35]} f6 {[%emt 0:00:52]} 42. Qxd6 {[%emt 0:00:25]} Qg5 {[%emt 0:00:10]} 43. Qe7+ {[%emt 0:00:27]} Kh6 {[%emt 0:00:34]} 44. Qd6 {[%emt 0:00:14]} 1-0

[Event "94th Paris-ch  2019"]
[Site "Paris"]
[Date "2019.07.12"]
[Round "7.21"]
[White "Smith, Matthieu"]
[Black "Girel, Joseph"]
[Result "1-0"]
[ECO "E14"]
[WhiteElo "2208"]
[BlackElo "2215"]
[Annotator "ChessBase"]
[PlyCount "135"]
[EventDate "2019.07.07"]
[EventType "swiss"]
[EventCountry "FRA"]
[SourceTitle "playchess.com"]
[Source "ChessBase"]
[SourceQuality "1"]
[TimeControl "5400+30"]

1. d4 {[%emt 0:13:38]} Nf6 {[%emt 0:00:00]} 2. Nf3 {[%emt 0:00:06]} e6 {[%emt 0:01:04]} 3. e3 {[%emt 0:00:13]} b6 {[%emt 0:00:34]} 4. Bd3 {[%emt 0:00:41]} Bb7 {[%emt 0:00:13]} 5. O-O {[%emt 0:00:15]} c5 {[%emt 0:00:37]} 6. c4 {[%emt 0:00:47]} Be7 {[%emt 0:01:03]} 7. Nc3 {[%emt 0:00:07]} O-O {[%emt 0:00:52]} 8. d5 {[%emt 0:00:22]} exd5 {[%emt 0:01:45]} 9. cxd5 {[%emt 0:00:06]} d6 {[%emt 0:01:09]} 10. e4 {[%emt 0:01:33]} a6 {[%emt 0:00:39]} 11. a4 {[%emt 0:00:04]} Nbd7 {[%emt 0:00:52]} 12. h3 {[%emt 0:00:47]} Ne8 {[%emt 0:02:30]} 13. Bf4 {[%emt 0:03:46]} Bf6 {[%emt 0:03:55]} 14. Re1 {[%emt 0:00:58]} Ne5 {[%emt 0:07:26]} 15. Bf1 {[%emt 0:11:21]} g6 {[%emt 0:02:32]} 16. Rb1 {[%emt 0:03:43]} Rc8 {[%emt 0:02:40]} 17. Re3 {[%emt 0:06:03]} Bg7 {[%emt 0:02:06]} 18. Nxe5 {[%emt 0:12:22]} dxe5 {[%emt 0:00:40]} 19. Bh2 {[%emt 0:01:08]} Nd6 {[%emt 0:01:14]} 20. b4 {[%emt 0:05:17]} c4 {[%emt 0:03:13]} 21. b5 {[%emt 0:08:57]} a5 {[%emt 0:01:49]} 22. Re1 {[%emt 0:02:34]} Qc7 {[%emt 0:06:42]} 23. Kh1 {[%emt 0:00:39]} Rce8 {[%emt 0:02:25]} 24. Qd2 {[%emt 0:01:04]} f5 {[%emt 0:07:54]} 25. f3 {[%emt 0:00:29]} f4 {[%emt 0:03:47]} 26. Rbc1 {[%emt 0:02:17]} g5 {[%emt 0:09:02]} 27. Rc2 {[%emt 0:00:23]} g4 {[%emt 0:02:12]} 28. fxg4 {[%emt 0:02:48]} f3 {[%emt 0:00:15]} 29. g3 {[%emt 0:01:34]} Bf6 {[%emt 0:03:17]} 30. Bg1 {[%emt 0:02:39]} Bd8 {[%emt 0:00:05]} 31. Qd1 {[%emt 0:02:12]} Qf7 {[%emt 0:04:13]} 32. Rf2 {[%emt 0:00:43]} h5 {[%emt 0:01:05]} 33. gxh5 {[%emt 0:01:09]} Bc8 {[%emt 0:00:15]} 34. Re3 {[%emt 0:01:53]} Qxh5 {[%emt 0:02:55]} 35. Rexf3 {[%emt 0:00:31]} Rxf3 {[%emt 0:01:08]} 36. Qxf3 {[%emt 0:01:19]} Qg6 {[%emt 0:00:17]} 37. Bg2 {[%emt 0:04:30]} Nf7 {[%emt 0:00:45]} 38. g4 {[%emt 0:01:26]} Kg7 {[%emt 0:01:41]} 39. Bh2 {[%emt 0:02:26]} Bh4 {[%emt 0:04:38]} 40. Bg3 {[%emt 0:02:30]} Bf6 {[%emt 0:00:21]} 41. Bh2 {[%emt 0:01:33]} Bh4 {[%emt 0:02:33]} 42. Rd2 {[%emt 0:01:29]} Qh6 {[%emt 0:00:45]} 43. Qe2 {[%emt 0:01:17]} Bg5 {[%emt 0:01:48]} 44. Rd1 {[%emt 0:00:11]} Nd6 {[%emt 0:01:05]} 45. Bg1 {[%emt 0:00:57]} Bd8 {[%emt 0:01:57]} 46. Be3 {[%emt 0:00:02]} Qg6 {[%emt 0:00:06]} 47. Rf1 {[%emt 0:01:16]} Rh8 {[%emt 0:00:06]} 48. Kg1 {[%emt 0:00:11]} Bd7 {[%emt 0:00:22]} 49. Rf3 {[%emt 0:01:34]} Re8 {[%emt 0:01:33]} 50. Qf2 {[%emt 0:00:20]} Nf7 {[%emt 0:00:01]} 51. Rf5 {[%emt 0:00:34]} Bxf5 52. exf5 {[%emt 0:00:01]} Qd6 {[%emt 0:02:53]} 53. Ne4 {[%emt 0:00:21]} Qxd5 {[%emt 0:01:51]} 54. f6+ {[%emt 0:00:01]} Kf8 {[%emt 0:00:25]} 55. g5 {[%emt 0:00:13]} Qd1+ {[%emt 0:00:34]} 56. Kh2 {[%emt 0:00:22]} Qh5 {[%emt 0:00:10]} 57. Bf3 {[%emt 0:01:49]} Qg6 {[%emt 0:00:15]} 58. h4 {[%emt 0:00:19]} Qf5 {[%emt 0:01:00]} 59. Qg2 {[%emt 0:00:28]} c3 {[%emt 0:02:06]} 60. Bg4 {[%emt 0:00:21]} Qh7 {[%emt 0:00:42]} 61. Kg3 {[%emt 0:00:26]} Nh8 {[%emt 0:04:11]} 62. h5 {[%emt 0:00:18]} Qf7 {[%emt 0:00:09]} 63. Nd6 {[%emt 0:01:15]} Qb3 {[%emt 0:00:20]} 64. Qb7 {[%emt 0:00:38]} Nf7 {[%emt 0:01:15]} 65. g6 {[%emt 0:00:39]} c2 {[%emt 0:02:35]} 66. Qxf7+ {[%emt 0:00:28]} Qxf7 {[%emt 0:00:03]} 67. gxf7 {[%emt 0:00:32]} Re6 {[%emt 0:00:13]} 68. Bh6# {[%emt 0:00:19]} 1-0